bitfinex-derivatives/quotes_BTCF0:USTF0_20241214
["timestamp","ask_amount","ask_price","bid_price","bid_amount"]
[1734216177992,0.74688349,101230.0,101220.0,1.00043857]
[1734216180910,0.74688349,101230.0,101220.0,1.00044743]
[1734216186092,0.74688349,101230.0,101220.0,0.93887542]
[1734216189197,0.38608349,101230.0,101220.0,0.93887542]
[1734216189699,0.38608349,101230.0,101220.0,0.93872581]
[1734216190202,0.20826803,101230.0,101220.0,0.64110647]
[1734216190394,0.20826803,101230.0,101220.0,0.70267848]
[1734216190896,0.20826803,101230.0,101220.0,0.93925642]
[1734216191283,0.20826803,101230.0,101220.0,0.64309009]
[1734216191491,0.20826803,101230.0,101220.0,0.93932944]
[1734216191793,0.20826803,101230.0,101220.0,0.93924691]
[1734216192297,0.38608349,101230.0,101220.0,0.93924691]
[1734216192690,0.20826803,101230.0,101220.0,0.93924691]
[1734216193298,0.20826803,101230.0,101220.0,0.94046035]
[1734216196299,0.38608349,101230.0,101220.0,0.94046035]
[1734216199199,0.38608349,101230.0,101220.0,0.94044744]
[1734216199689,0.38608349,101230.0,101220.0,1.00201945]
[1734216199903,0.20826803,101230.0,101220.0,1.00201945]
[1734216200303,0.20826803,101230.0,101220.0,0.94044744]
[1734216200705,0.38608349,101230.0,101220.0,0.94044744]
[1734216200903,0.20826803,101230.0,101220.0,0.94044744]
[1734216201110,0.38608349,101230.0,101220.0,0.94044744]
[1734216201296,0.20826803,101230.0,101220.0,0.94044744]
[1734216201696,0.38608349,101230.0,101220.0,0.94044744]
[1734216201893,0.20826803,101230.0,101220.0,0.94044744]
[1734216202099,0.20826803,101230.0,101220.0,0.94159228]
[1734216202505,0.38608349,101230.0,101220.0,0.94159228]
[1734216202710,0.20826803,101230.0,101220.0,0.94159228]
[1734216203806,0.20826803,101230.0,101220.0,0.94159808]
[1734216206108,0.20826803,101230.0,101220.0,1.00317009]
[1734216206494,0.20826803,101230.0,101220.0,0.76659215]
[1734216209107,0.20826803,101230.0,101220.0,0.76783516]
[1734216211309,0.27740753,101230.0,101220.0,1.48328452]
[1734216211519,0.01066731,101230.0,101220.0,0.53694431]
[1734216211709,0.145891,101240.0,101220.0,0.53694431]
[1734216212008,0.145891,101240.0,101230.0,0.47176601]
[1734216212210,0.145891,101240.0,101230.0,0.4753673]
[1734216212412,0.146391,101240.0,101230.0,0.41379529]
[1734216212606,0.146391,101240.0,101230.0,0.4753673]
[1734216213118,0.47233647,101240.0,101230.0,0.4753673]
[1734216213312,0.47183643,101240.0,101230.0,0.71187853]
[1734216213510,0.47183643,101240.0,101230.0,1.00751757]
[1734216213708,0.47183643,101240.0,101230.0,0.66248453]
[1734216214215,0.48205576,101240.0,101230.0,0.66248453]
[1734216214419,0.48255576,101240.0,101230.0,0.66248453]
[1734216214715,0.30476732,101240.0,101230.0,0.66248453]
[1734216214921,0.30476732,101240.0,101230.0,0.71187853]
[1734216218316,0.30426732,101240.0,101230.0,0.71187853]
[1734216219417,0.30426732,101240.0,101230.0,0.88914725]
[1734216222027,0.30426732,101240.0,101230.0,0.71187853]
[1734216222228,0.4227041,101240.0,101230.0,1.00751757]
[1734216222527,0.3733131,101240.0,101230.0,1.00751757]
[1734216222714,0.3733131,101240.0,101230.0,0.71187853]
[1734216225520,0.3733131,101240.0,101230.0,0.65030652]
[1734216226132,0.3733131,101240.0,101230.0,0.71187853]
[1734216227840,0.22515611,101240.0,101230.0,1.00713904]
[1734216228135,0.22515611,101240.0,101230.0,1.30277808]
[1734216229543,0.22515611,101240.0,101230.0,1.00751757]
[1734216230141,0.22515611,101240.0,101230.0,1.30288125]
[1734216230644,0.22515611,101240.0,101230.0,1.24130924]
[1734216230848,0.22515611,101240.0,101230.0,1.00479801]
[1734216231142,0.22515611,101240.0,101230.0,1.06637002]
[1734216231531,0.22515611,101240.0,101230.0,0.77100634]
[1734216231837,0.22515611,101240.0,101230.0,1.06634783]
[1734216233539,0.22515611,101240.0,101230.0,0.77100634]
[1734216233743,0.22515611,101240.0,101230.0,0.83257835]
[1734216233945,0.22515611,101240.0,101230.0,0.77100634]
[1734216235139,0.12865611,101240.0,101230.0,0.83257835]
[1734216235338,0.12865611,101240.0,101230.0,1.1269111]
[1734216236243,0.26709377,101250.0,101230.0,1.84324996]
[1734216236439,0.56821985,101290.0,101280.0,0.04937]
[1734216236639,0.4244,101290.0,101280.0,0.17251402]
[1734216236840,0.43479308,101290.0,101280.0,0.34949742]
[1734216237040,0.43479308,101290.0,101280.0,0.46233127]
[1734216237238,0.48415808,101290.0,101280.0,0.52750457]
[1734216237440,0.48415808,101290.0,101280.0,0.2915267]
[1734216238749,0.48415808,101290.0,101280.0,0.1145433]
[1734216240344,0.48415808,101290.0,101280.0,0.05297129]
[1734216240549,0.54573009,101290.0,101280.0,0.00360129]
[1734216241141,0.54573009,101290.0,101270.0,0.52390628]
[1734216241337,0.44277,101280.0,101270.0,0.28792841]
[1734216244651,0.50434201,101280.0,101270.0,0.2263564]
[1734216245751,0.44277,101280.0,101270.0,0.2263564]
[1734216245949,0.50434201,101280.0,101270.0,0.2263564]
[1734216247148,0.47174201,101280.0,101270.0,0.2263564]
[1734216247352,0.50394201,101280.0,101270.0,0.2263564]
[1734216251047,0.50394201,101280.0,101270.0,0.049373]
[1734216251755,0.50394201,101280.0,101270.0,0.2263564]
[1734216252659,0.50394201,101280.0,101270.0,0.049373]
[1734216254652,0.56551402,101280.0,101270.0,0.049373]
[1734216255262,0.049375,101270.0,101260.0,0.46233927]
[1734216255563,0.53734701,101270.0,101260.0,0.46233927]
[1734216256656,0.53734701,101270.0,101260.0,0.2263614]
[1734216257250,0.53734701,101270.0,101260.0,0.1769834]
[1734216257458,0.04938,101260.0,101250.0,0.46382465]
[1734216257658,0.04938,101260.0,101250.0,0.28684125]
[1734216257659,0.50495201,101260.0,101250.0,0.28684125]
[1734216258864,0.50495201,101260.0,101250.0,0.4633663]
[1734216259467,0.50495201,101260.0,101250.0,0.4638663]
[1734216260362,0.50495201,101260.0,101250.0,0.4633663]
[1734216261371,0.50495201,101260.0,101250.0,0.4638663]
[1734216262467,0.50495201,101260.0,101250.0,0.4633663]
[1734216262864,0.56652402,101260.0,101250.0,0.4633663]
[1734216263467,0.56652402,101260.0,101250.0,0.28734125]
[1734216263768,0.56652402,101260.0,101250.0,0.46411006]
[1734216264368,0.56652402,101260.0,101250.0,0.46361006]
[1734216264567,0.57681544,101260.0,101250.0,0.46361006]
[1734216265276,0.51524343,101260.0,101250.0,0.46361006]
[1734216265470,0.57681544,101260.0,101250.0,0.46411006]
[1734216265667,0.57681544,101260.0,101250.0,0.41472806]
[1734216266365,0.57681544,101260.0,101250.0,0.41422806]
[1734216267476,0.57681544,101260.0,101250.0,0.41472806]
[1734216267677,0.57681544,101260.0,101250.0,0.17875019]
[1734216268073,0.57681544,101260.0,101250.0,0.00198138]
[1734216268479,0.57681544,101260.0,101250.0,0.00148138]
[1734216268679,0.57681544,101260.0,101250.0,0.17825019]
[1734216269069,0.57681544,101260.0,101250.0,0.00148138]
[1734216269573,0.57681544,101260.0,101250.0,0.00198138]
[1734216270379,0.57681544,101260.0,101250.0,0.00148138]
[1734216270675,0.57681544,101260.0,101240.0,0.41274668]
[1734216270878,0.53665701,101250.0,101240.0,0.41274668]
[1734216271477,0.53665701,101250.0,101240.0,0.41324668]
[1734216272369,0.53665701,101250.0,101240.0,0.41274668]
[1734216273378,0.53665701,101250.0,101240.0,0.41324668]
[1734216274369,0.53665701,101250.0,101240.0,0.41274668]
[1734216275475,0.53665701,101250.0,101240.0,0.17726881]
[1734216277280,0.53665701,101250.0,101240.0,0.41324668]
[1734216277577,0.53665701,101250.0,101240.0,0.17726881]
[1734216278271,0.53665701,101250.0,101240.0,0.41324668]
[1734216281380,0.53665701,101250.0,101240.0,0.41274668]
[1734216281676,0.59822902,101250.0,101240.0,0.41274668]
[1734216283081,0.53665701,101250.0,101240.0,0.41274668]
[1734216283277,0.59822902,101250.0,101240.0,0.41274668]
[1734216283978,0.04939,101240.0,101230.0,0.53161691]
[1734216284285,0.04939,101240.0,101220.0,0.23597787]
[1734216284286,0.049394,101230.0,101220.0,0.23597787]
[1734216284578,0.53333802,101230.0,101220.0,0.23597787]
[1734216285091,0.049399,101220.0,101210.0,0.58250176]
[1734216285274,0.53334302,101220.0,101210.0,0.90190855]
[1734216287285,0.53334302,101220.0,101210.0,0.58250176]
[1734216287676,0.53334302,101220.0,101210.0,0.23745972]
[1734216287878,0.53334302,101220.0,101210.0,0.23597787]
[1734216288085,0.56614302,101220.0,101210.0,0.23597787]
[1734216288279,0.56614302,101220.0,101200.0,0.55241691]
[1734216288478,0.47177601,101210.0,101200.0,0.25677787]
[1734216289479,0.410204,101210.0,101200.0,0.25677787]
[1734216289691,0.47177601,101210.0,101200.0,0.25677787]
[1734216289987,0.47177601,101210.0,101200.0,0.0208]
[1734216298091,0.47177601,101210.0,101200.0,0.070209]
[1734216298387,0.47177601,101210.0,101200.0,0.049409]
[1734216298794,0.50447601,101210.0,101200.0,0.049409]
[1734216301394,0.50447601,101210.0,101200.0,0.049909]
[1734216301996,0.53737601,101210.0,101200.0,0.049909]
[1734216302498,0.53737601,101210.0,101200.0,0.049409]
[1734216303390,0.53737601,101210.0,101200.0,0.049909]
[1734216305494,0.59894802,101210.0,101200.0,0.049909]
[1734216306090,0.53737601,101210.0,101200.0,0.049909]
[1734216307498,0.53737601,101210.0,101200.0,0.28538687]
[1734216307693,0.59894802,101210.0,101200.0,0.28538687]
[1734216310399,0.53737601,101210.0,101200.0,0.28538687]
[1734216311095,0.59894802,101210.0,101200.0,0.28538687]
[1734216312397,0.59894802,101210.0,101200.0,0.58102591]
[1734216312600,0.59894802,101210.0,101200.0,0.53161691]
[1734216312807,0.59894802,101210.0,101200.0,0.8518015]
[1734216313392,0.71694777,101210.0,101200.0,0.8518015]
[1734216313998,0.71694777,101210.0,101200.0,0.85207412]
[1734216314491,0.71694777,101210.0,101200.0,0.61609625]
[1734216316005,0.71694777,101210.0,101200.0,0.85262435]
[1734216316299,0.86471021,101210.0,101200.0,0.61609625]
[1734216316705,0.86471021,101210.0,101200.0,0.85267806]
[1734216317300,0.74671046,101210.0,101200.0,0.61609625]
[1734216318612,0.74671046,101210.0,101200.0,0.61679708]
[1734216319401,0.62356644,101210.0,101200.0,0.61679708]
[1734216319600,0.74671046,101210.0,101200.0,0.61679708]
[1734216319798,0.92359295,101210.0,101200.0,0.8534351]
[1734216321101,0.74671046,101210.0,101200.0,0.8534351]
[1734216321308,0.92359295,101210.0,101200.0,0.8534351]
[1734216321505,0.74671046,101210.0,101200.0,0.23663802]
[1734216323010,0.92359295,101210.0,101200.0,0.23663802]
[1734216323210,0.77583051,101210.0,101200.0,0.23663802]
[1734216323612,0.049409,101200.0,101190.0,0.29563904]
[1734216323807,0.049414,101190.0,101180.0,0.29762124]
[1734216324110,0.049414,101190.0,101180.0,0.61863661]
[1734216324111,0.71476814,101190.0,101180.0,0.61863661]
[1734216324614,0.71476814,101190.0,101180.0,0.61813661]
[1734216325409,0.71476814,101190.0,101180.0,0.29712124]
[1734216325607,0.71476814,101190.0,101180.0,0.0019822]
[1734216326517,0.71476814,101190.0,101180.0,0.0014822]
[1734216327517,0.71476814,101190.0,101180.0,0.0019822]
[1734216328606,0.71476814,101190.0,101180.0,0.0014822]
[1734216329412,0.049419,101180.0,101170.0,0.52643964]
[1734216329614,0.53336302,101180.0,101170.0,0.83895494]
[1734216331109,0.53336302,101180.0,101170.0,0.72088037]
[1734216334514,0.53336302,101180.0,101170.0,0.72138037]
[1734216335128,0.53336302,101180.0,101170.0,0.40886507]
[1734216335618,0.53336302,101180.0,101170.0,0.11322603]
[1734216336620,0.53336302,101180.0,101170.0,0.08132603]
[1734216337220,0.53336302,101180.0,101170.0,0.05002603]
[1734216337729,0.53336302,101180.0,101170.0,0.00060303]
[1734216345534,0.53336302,101180.0,101170.0,0.00010303]
[1734216345828,0.56586302,101180.0,101170.0,0.00010303]
[1734216346541,0.56586302,101180.0,101170.0,0.29574207]
[1734216347131,0.74594515,101180.0,101170.0,0.00010303]
[1734216352039,0.77556907,101180.0,101170.0,0.00010303]
[1734216369442,0.59085304,101180.0,101170.0,0.00010303]
[1734216369648,0.77556907,101180.0,101170.0,0.00010303]
[1734216369844,0.95245156,101180.0,101170.0,0.00010303]
[1734216370348,0.77556907,101180.0,101170.0,0.00010303]
[1734216371140,0.77556907,101180.0,101170.0,0.0011637]
[1734216371649,0.77556907,101180.0,101170.0,0.00132146]
[1734216371840,0.95245156,101180.0,101170.0,0.00132146]
[1734216373643,0.95248692,101180.0,101170.0,0.00132146]
[1734216374641,0.82428131,101180.0,101170.0,0.00132146]
[1734216374948,0.80431752,101180.0,101170.0,0.00132146]
[1734216376844,0.61960149,101180.0,101170.0,0.00132146]
[1734216377044,0.80431752,101180.0,101170.0,0.00132146]
[1734216379549,0.82413299,101180.0,101170.0,0.00132146]
[1734216382461,0.049424,101170.0,101160.0,0.29563904]
[1734216382645,0.049429,101160.0,101150.0,0.76193689]
[1734216382959,0.65197373,101160.0,101150.0,0.71981324]
[1734216383158,0.80022416,101160.0,101150.0,0.67038224]
[1734216383350,0.80030535,101160.0,101150.0,0.67038224]
[1734216383549,0.65205492,101160.0,101150.0,0.67088224]
[1734216383948,0.5289109,101160.0,101150.0,0.67088224]
[1734216384150,0.65205492,101160.0,101150.0,0.67088224]
[1734216384458,0.65205492,101160.0,101150.0,0.67064908]
[1734216384650,0.65205492,101160.0,101150.0,0.67014908]
[1734216385657,0.65205492,101160.0,101150.0,0.67064908]
[1734216385963,0.65205492,101160.0,101150.0,0.72008308]
[1734216386563,0.65205492,101160.0,101150.0,0.71958308]
[1734216387260,0.66242804,101160.0,101150.0,0.71958308]
[1734216387661,0.66242804,101160.0,101150.0,0.72008308]
[1734216388569,0.66242804,101160.0,101150.0,0.71958308]
[1734216389065,0.66242804,101160.0,101150.0,0.71925813]
[1734216389661,0.66242804,101160.0,101150.0,0.71975813]
[1734216390674,0.66242804,101160.0,101150.0,0.71925813]
[1734216390976,0.53928402,101160.0,101150.0,0.68875813]
[1734216391265,0.66242804,101160.0,101150.0,0.68875813]
[1734216391659,0.66242804,101160.0,101150.0,0.68925813]
[1734216391859,0.66242804,101160.0,101150.0,0.92591367]
[1734216392660,0.66242804,101160.0,101150.0,0.92541367]
[1734216393663,0.66242804,101160.0,101150.0,0.92591367]
[1734216393862,0.53928402,101160.0,101150.0,0.92591367]
[1734216394068,0.66242804,101160.0,101150.0,0.92591367]
[1734216394962,0.60085603,101160.0,101150.0,0.92591367]
[1734216395365,0.17848402,101160.0,101150.0,0.081534]
[1734216395663,0.1186819,101160.0,101150.0,0.6844709]
[1734216395866,0.20754573,101160.0,101150.0,0.6844709]
[1734216396064,0.08894502,101160.0,101150.0,0.6844709]
[1734216396377,0.15051703,101160.0,101150.0,0.6844709]
[1734216396664,0.08894502,101160.0,101150.0,0.6844709]
[1734216397470,0.15051703,101160.0,101150.0,0.6844709]
[1734216397666,0.15051703,101160.0,101150.0,0.6839709]
[1734216397864,0.15051703,101160.0,101150.0,0.68394315]
[1734216398475,0.15051703,101160.0,101150.0,0.74910411]
[1734216402367,0.15051703,101160.0,101150.0,1.04472191]
[1734216402970,0.15051703,101160.0,101150.0,1.10372285]
[1734216404471,0.15051703,101160.0,101150.0,1.46978479]
[1734216404679,0.0616532,101160.0,101150.0,1.46978479]
[1734216404975,0.15051703,101160.0,101150.0,1.46978479]
[1734216406970,0.08894502,101160.0,101150.0,1.46978479]
[1734216407174,0.15051703,101160.0,101150.0,1.46978479]
[1734216407672,0.15051703,101160.0,101150.0,1.10372285]
[1734216411771,0.15051703,101160.0,101150.0,1.10342176]
[1734216412780,0.15051703,101160.0,101150.0,1.46914071]
[1734216414067,0.08894502,101160.0,101150.0,1.46914071]
[1734216415774,0.08894502,101160.0,101150.0,1.10342176]
[1734216416276,0.08894502,101160.0,101150.0,0.79660085]
[1734216416471,0.08894502,101160.0,101150.0,1.1034025]
[1734216417978,0.08894502,101160.0,101150.0,1.46832078]
[1734216420776,0.08894502,101160.0,101150.0,1.4678085]
[1734216424283,0.08894502,101160.0,101150.0,1.46914288]
[1734216425678,0.20754573,101160.0,101150.0,1.46914288]
[1734216426188,0.08894502,101160.0,101150.0,1.46914288]
[1734216426384,0.20754573,101160.0,101150.0,1.46914288]
[1734216428880,0.20754573,101160.0,101150.0,1.46134813]
[1734216429486,0.20754573,101160.0,101150.0,1.42974813]
[1734216429788,0.27254573,101160.0,101150.0,1.42974813]
[1734216432584,0.27254573,101160.0,101150.0,1.07498128]
[1734216435394,0.27254573,101160.0,101150.0,0.410234]
[1734216437192,0.06508119,101160.0,101150.0,0.410234]
[1734216440792,0.42588119,101160.0,101140.0,0.68329489]
[1734216441599,0.42588119,101160.0,101150.0,0.049434]
[1734216445695,0.51485728,101160.0,101150.0,0.74322892]
[1734216453104,0.15405728,101160.0,101150.0,0.74322892]
[1734216453298,0.21562929,101160.0,101150.0,0.74322892]
[1734216454601,0.15405728,101160.0,101150.0,0.74322892]
[1734216457701,0.15405728,101160.0,101150.0,0.74559117]
[1734216462303,0.15405728,101160.0,101150.0,0.74493156]
[1734216465113,0.18695728,101160.0,101150.0,0.74493156]
[1734216466812,0.18695728,101160.0,101150.0,0.049434]
[1734216467019,0.18695728,101160.0,101150.0,0.74497212]
[1734216470514,0.18695728,101160.0,101150.0,1.10577212]
[1734216470714,0.18695728,101160.0,101150.0,0.74497212]
[1734216475221,0.60932929,101160.0,101150.0,0.74497212]
[1734216475423,0.77739307,101160.0,101150.0,1.10066237]
[1734216478424,0.65875829,101160.0,101150.0,1.10066237]
[1734216478820,0.77739307,101160.0,101150.0,1.10066237]
[1734216479329,0.65875829,101160.0,101150.0,1.10066237]
[1734216481227,0.59718628,101160.0,101150.0,1.10066237]
[1734216481533,0.77739307,101160.0,101150.0,1.10066237]
[1734216481736,0.65875829,101160.0,101150.0,1.10066237]
[1734216483337,0.65875829,101160.0,101150.0,1.10100486]
[1734216487841,0.65875829,101160.0,101150.0,1.10068988]
[1734216488737,0.77739307,101160.0,101150.0,1.10068988]
[1734216489045,0.65875829,101160.0,101150.0,1.10068988]
[1734216490232,0.77739307,101160.0,101150.0,1.10068988]
[1734216490436,0.65875829,101160.0,101150.0,1.10068988]
[1734216490837,0.71582106,101160.0,101150.0,1.10068988]
[1734216491145,0.77739307,101160.0,101150.0,1.10068988]
[1734216492338,0.77739307,101160.0,101150.0,1.10001811]
[1734216493037,0.59718628,101160.0,101150.0,1.10001811]
[1734216493343,0.54775728,101160.0,101150.0,1.10001811]
[1734216493538,0.51485728,101160.0,101150.0,1.10001811]
[1734216493740,0.44985728,101160.0,101150.0,1.10001811]
[1734216495440,0.08905728,101160.0,101150.0,1.46081811]
[1734216495640,0.44985728,101160.0,101150.0,1.10001811]
[1734216495828,0.44985728,101160.0,101150.0,1.09993551]
[1734216496034,0.44985728,101160.0,101150.0,0.74432786]
[1734216496628,0.44985728,101160.0,101150.0,0.36573463]
[1734216496829,0.44985728,101160.0,101150.0,0.74275286]
[1734216497935,0.44985728,101160.0,101150.0,1.09836505]
[1734216498242,0.44985728,101160.0,101150.0,0.74275286]
[1734216498635,0.51142929,101160.0,101150.0,0.74275286]
[1734216500446,0.44985728,101160.0,101150.0,0.74275286]
[1734216501233,0.44985728,101160.0,101150.0,0.74283478]
[1734216502548,0.44985728,101160.0,101150.0,1.09843818]
[1734216503149,0.44985728,101160.0,101150.0,0.74283478]
[1734216510047,0.44985728,101160.0,101150.0,0.74244384]
[1734216514546,0.44985728,101160.0,101150.0,0.049434]
[1734216514751,0.44985728,101160.0,101150.0,0.74230766]
[1734216516157,0.08905728,101160.0,101150.0,0.74230766]
[1734216516453,0.44985728,101160.0,101150.0,0.74230766]
[1734216522257,0.08905728,101160.0,101150.0,0.74230766]
[1734216522456,0.44985728,101160.0,101150.0,0.74230766]
[1734216523762,0.44985728,101160.0,101150.0,0.74250643]
[1734216524551,0.08905728,101160.0,101150.0,0.74250643]
[1734216524752,0.44985728,101160.0,101150.0,0.74250643]
[1734216527456,0.08905728,101160.0,101150.0,0.74250643]
[1734216527654,0.56849206,101160.0,101150.0,0.74250643]
[1734216528356,0.56849206,101160.0,101150.0,0.7325213]
[1734216528861,0.20769206,101160.0,101150.0,0.7325213]
[1734216529450,0.56849206,101160.0,101150.0,0.7325213]
[1734216530750,0.20769206,101160.0,101150.0,0.7325213]
[1734216530955,0.56849206,101160.0,101150.0,0.7325213]
[1734216531458,0.56849206,101160.0,101150.0,0.73250177]
[1734216532164,0.56849206,101160.0,101150.0,1.08837826]
[1734216533762,0.20769206,101160.0,101150.0,1.08837826]
[1734216534065,0.56849206,101160.0,101150.0,1.08837826]
[1734216541166,0.56849206,101160.0,101150.0,0.73250177]
[1734216544970,0.44985728,101160.0,101150.0,0.73250177]
[1734216545469,0.44985728,101160.0,101150.0,0.36105795]
[1734216545670,0.08905728,101160.0,101150.0,0.73236065]
[1734216545965,0.08905728,101160.0,101150.0,1.63897009]
[1734216546567,8.119e-05,101160.0,101150.0,1.66937009]
[1734216546767,8.119e-05,101160.0,101150.0,1.70227009]
[1734216546969,0.56891087,101170.0,101160.0,0.049429]
[1734216547277,0.56891087,101170.0,101160.0,1.08813849]
[1734216547875,0.56841087,101170.0,101160.0,1.08813849]
[1734216548873,0.56891087,101170.0,101160.0,1.08813849]
[1734216549973,0.56841087,101170.0,101160.0,1.08813849]
[1734216550174,0.56841087,101170.0,101160.0,1.08968232]
[1734216550876,0.56891087,101170.0,101160.0,1.08968232]
[1734216551575,0.62981087,101170.0,101160.0,1.08968232]
[1734216551774,0.62931087,101170.0,101160.0,1.08968232]
[1734216552877,0.62981087,101170.0,101160.0,1.08968232]
[1734216553376,0.62981087,101170.0,101160.0,1.15125433]
[1734216553767,0.62931087,101170.0,101160.0,1.15125433]
[1734216554875,0.62981087,101170.0,101160.0,1.15131669]
[1734216555078,0.15037609,101170.0,101160.0,1.08974468]
[1734216555667,0.15037609,101170.0,101160.0,1.09952757]
[1734216555874,0.14987609,101170.0,101160.0,1.16109958]
[1734216556376,0.14987609,101170.0,101160.0,1.09958794]
[1734216556774,0.15037609,101170.0,101160.0,1.09958794]
[1734216557781,0.14987609,101170.0,101160.0,1.09958794]
[1734216558575,0.51067609,101170.0,101160.0,1.09958794]
[1734216558777,0.51117609,101170.0,101160.0,1.09958794]
[1734216563177,0.51117609,101170.0,101160.0,1.08980505]
[1734216563776,0.51067609,101170.0,101160.0,1.08980505]
[1734216567876,0.14987609,101170.0,101160.0,1.08980505]
[1734216568078,0.51067609,101170.0,101160.0,1.08980505]
[1734216570484,0.62931087,101170.0,101160.0,0.71753172]
[1734216570985,0.51067609,101170.0,101160.0,0.71753172]
[1734216571380,0.62931087,101170.0,101160.0,0.71753172]
[1734216573579,0.62931087,101170.0,101160.0,0.71788438]
[1734216574288,0.26851087,101170.0,101160.0,0.71788438]
[1734216574485,0.62931087,101170.0,101160.0,0.71788438]
[1734216575388,0.54033478,101170.0,101160.0,0.71788438]
[1734216577083,0.54033478,101170.0,101160.0,0.77945639]
[1734216577588,0.62928951,101170.0,101160.0,1.15229949]
[1734216578187,0.62928951,101170.0,101160.0,1.1524362]
[1734216579585,0.14985473,101170.0,101160.0,0.79665336]
[1734216579783,0.14985473,101170.0,101160.0,1.64351673]
[1734216579983,0.08895473,101170.0,101160.0,1.64351673]
[1734216580184,0.08895473,101170.0,101160.0,1.67591673]
[1734216580390,0.61091135,101180.0,101160.0,1.67591673]
[1734216580586,0.61091135,101180.0,101170.0,0.40496363]
[1734216580885,0.61141135,101180.0,101170.0,1.09061598]
[1734216581886,0.61091135,101180.0,101170.0,1.09061598]
[1734216582699,0.61091135,101180.0,101170.0,0.7177667]
[1734216582987,0.61141135,101180.0,101170.0,0.7177667]
[1734216583496,0.61141135,101180.0,101170.0,0.77933871]
[1734216583884,0.61091135,101180.0,101170.0,0.77933871]
[1734216584896,0.61141135,101180.0,101170.0,0.77933871]
[1734216585988,0.61091135,101180.0,101170.0,0.78950768]
[1734216586181,0.61091135,101180.0,101170.0,1.08569081]
[1734216586385,0.61091135,101180.0,101170.0,0.78950768]
[1734216586888,0.61141135,101180.0,101170.0,1.0856908]
[1734216587094,0.61141135,101180.0,101170.0,0.78950768]
[1734216587290,0.61141135,101180.0,101170.0,1.0857705]
[1734216587487,0.52245662,101180.0,101170.0,0.73023087]
[1734216587887,0.52195662,101180.0,101170.0,0.73023087]
[1734216588901,0.52245662,101180.0,101170.0,0.73023087]
[1734216590590,0.52245662,101180.0,101170.0,1.0857705]
[1734216590794,0.61135735,101180.0,101170.0,1.0857705]
[1734216591789,0.61135735,101180.0,101170.0,1.0857798]
[1734216596902,0.61085735,101180.0,101170.0,1.0857798]
[1734216597605,0.25005735,101180.0,101170.0,1.0857798]
[1734216597803,0.61085735,101180.0,101170.0,1.0857798]
[1734216600103,0.25005735,101180.0,101170.0,1.0857798]
[1734216600308,0.61085735,101180.0,101170.0,1.02420779]
[1734216601807,0.25005735,101180.0,101170.0,1.02420779]
[1734216602005,0.61085735,101180.0,101170.0,1.02420779]
[1734216602603,0.61085735,101180.0,101170.0,1.0241928]
[1734216603205,0.61085735,101180.0,101170.0,0.72802844]
[1734216606302,0.52195662,101180.0,101170.0,0.72802844]
[1734216606899,0.51183478,101180.0,101170.0,0.72802844]
[1734216609216,0.51183478,101180.0,101170.0,1.09936419]
[1734216610413,0.47943478,101180.0,101170.0,1.1609362]
[1734216610608,0.47943478,101180.0,101170.0,1.2232362]
[1734216610809,0.11863478,101180.0,101170.0,1.5536362]
[1734216611014,0.20760401,101180.0,101170.0,1.5536362]
[1734216611312,0.20760401,101180.0,101170.0,1.19809657]
[1734216611518,0.20760401,101180.0,101170.0,1.55363268]
[1734216612506,0.08896923,101180.0,101170.0,1.55363268]
[1734216612709,0.08896923,101180.0,101170.0,1.55217851]
[1734216614324,0.08896923,101180.0,101170.0,1.1966424]
[1734216614520,0.08896923,101180.0,101170.0,1.55202722]
[1734216615413,0.08896923,101180.0,101170.0,1.5520023]
[1734216615615,0.08896923,101180.0,101170.0,1.49043029]
[1734216615821,0.08896923,101180.0,101170.0,1.1593023]
[1734216616022,0.08896923,101180.0,101170.0,1.50993333]
[1734216616625,0.08896923,101180.0,101170.0,1.50914929]
[1734216617128,0.08896923,101180.0,101170.0,1.50826397]
[1734216620629,0.08896923,101180.0,101170.0,1.5183024]
[1734216621428,0.08896923,101180.0,101170.0,1.51777458]
[1734216626933,0.68172001,101190.0,101180.0,0.049419]
[1734216627229,0.68172001,101190.0,101180.0,0.65592151]
[1734216627622,0.68172001,101190.0,101180.0,1.01128141]
[1734216628127,0.59325078,101190.0,101180.0,0.65592151]
[1734216628918,0.59275078,101190.0,101180.0,0.65592151]
[1734216629824,0.23195078,101190.0,101180.0,0.65592151]
[1734216630020,0.23245078,101190.0,101180.0,0.65592151]
[1734216630219,0.59325078,101190.0,101180.0,0.65592151]
[1734216630419,0.18303478,101190.0,101180.0,0.71748682]
[1734216630626,0.18303478,101190.0,101180.0,0.65591481]
[1734216630931,0.18253478,101190.0,101180.0,0.65591481]
[1734216631930,0.18303478,101190.0,101180.0,0.65591481]
[1734216632622,0.27190881,101190.0,101180.0,0.65591481]
[1734216632935,0.27140881,101190.0,101180.0,0.65591481]
[1734216633826,0.27140881,101190.0,101180.0,1.01127471]
[1734216634132,0.27190881,101190.0,101180.0,1.01127471]
[1734216634537,0.27190881,101190.0,101180.0,0.65591481]
[1734216634742,0.18303478,101190.0,101180.0,0.65502859]
[1734216636031,0.2719177,101190.0,101180.0,1.01038849]
[1734216636732,0.27192218,101190.0,101180.0,1.01038849]
[1734216637526,0.18303478,101190.0,101180.0,1.01038849]
[1734216637727,0.18303478,101190.0,101180.0,0.65502859]
[1734216638026,0.18303478,101190.0,101180.0,1.01038849]
[1734216638734,0.54383478,101190.0,101180.0,1.01038849]
[1734216643836,0.54383478,101190.0,101180.0,1.0105151]
[1734216644137,0.54333478,101190.0,101180.0,1.0105151]
[1734216644739,0.54333478,101190.0,101180.0,1.07208711]
[1734216645129,0.54333478,101190.0,101180.0,1.0105151]
[1734216648338,0.54333478,101190.0,101180.0,0.7007923]
[1734216648542,0.54333478,101190.0,101180.0,1.00977805]
[1734216652545,0.69162826,101190.0,101180.0,1.00977805]
[1734216653136,0.33082826,101190.0,101180.0,1.00977805]
[1734216653336,0.18253478,101190.0,101180.0,0.71376465]
[1734216654351,0.18253478,101190.0,101180.0,1.08232147]
[1734216657356,0.18253478,101190.0,101180.0,0.71376465]
[1734216662154,0.18253478,101190.0,101180.0,0.4047789]
[1734216664766,0.27146249,101190.0,101180.0,1.08276359]
[1734216666054,0.27146249,101190.0,101180.0,1.1443356]
[1734216668462,0.15282771,101190.0,101180.0,1.1443356]
[1734216671359,0.15282771,101190.0,101180.0,0.46635091]
[1734216671566,0.15282771,101190.0,101180.0,1.14359272]
[1734216675370,0.15282771,101190.0,101180.0,1.50439272]
[1734216675559,0.15282771,101190.0,101180.0,1.14903282]
[1734216676460,0.08892771,101190.0,101180.0,1.14903282]
[1734216676856,0.08892771,101190.0,101180.0,1.14895639]
[1734216677562,0.22295621,101200.0,101190.0,0.049414]
[1734216677867,0.22295621,101200.0,101190.0,0.7006448]
[1734216678071,0.22245621,101200.0,101190.0,1.00957601]
[1734216679166,0.31183237,101200.0,101190.0,1.00957601]
[1734216679357,0.31183214,101200.0,101190.0,1.00957601]
[1734216679969,0.31133214,101200.0,101190.0,1.00957601]
[1734216680368,0.22245621,101200.0,101190.0,1.00957601]
[1734216680970,0.31183139,101200.0,101190.0,1.00957601]
[1734216681173,0.31183122,101200.0,101190.0,1.00957601]